[Event "Titled Tuesday Blitz August 22 Early 2023"]
[White "Tabatabaei, M. Amin"]
[Black "Cordova, Emilio"]
[WhiteFideId "12521213"]
[BlackFideId "3801497"]
[WhiteElo "2996"]
[BlackElo "2875"]
[Result "0-1"]
[Round "7"]
[TimeControl "180+1"]
[Date "2023.08.22"]
[WhiteClock "0:00:03"]
[BlackClock "0:00:04"]
[Board "11"]

1. e4 {[%clk 0:03:00]}  c5 {[%clk 0:02:51]} 2. Nf3 {[%clk 0:03:01]}  Nc6 {[%clk 0:02:52]} 3. c3 {[%clk 0:02:58]}  e6 {[%clk 0:02:51]} 4. d4 {[%clk 0:02:57]}  d5 {[%clk 0:02:52]} 5. e5 {[%clk 0:02:57]}  Nge7 {[%clk 0:02:50]} 6. Na3 {[%clk 0:02:55]}  Nf5 {[%clk 0:02:48]} 7. Nc2 {[%clk 0:02:55]}  cxd4 {[%clk 0:02:48]} 8. cxd4 {[%clk 0:02:56]}  f6 {[%clk 0:02:48]} 9. Bd3 {[%clk 0:02:53]}  Be7 {[%clk 0:02:47]} 10. O-O {[%clk 0:02:46]}  O-O {[%clk 0:02:47]} 11. Re1 {[%clk 0:02:42]}  fxe5 {[%clk 0:02:47]} 12. Nxe5 {[%clk 0:02:32]}  Nxe5 {[%clk 0:02:40]} 13. Rxe5 {[%clk 0:02:33]}  Bd6 {[%clk 0:02:39]} 14. Re1 {[%clk 0:02:33]}  Qh4 {[%clk 0:02:31]} 15. h3 {[%clk 0:02:11]}  Nxd4 {[%clk 0:01:58]} 16. Bxh7+ {[%clk 0:02:08]}  Kxh7 {[%clk 0:01:55]} 17. Qxd4 {[%clk 0:02:09]}  Qxd4 {[%clk 0:01:53]} 18. Nxd4 {[%clk 0:02:10]}  e5 {[%clk 0:01:52]} 19. Nb5 {[%clk 0:02:10]}  Bb8 {[%clk 0:01:47]} 20. b3 {[%clk 0:01:56]}  Bd7 {[%clk 0:01:46]} 21. Nc3 {[%clk 0:01:56]}  Bc6 {[%clk 0:01:46]} 22. Ba3 {[%clk 0:01:53]}  Rf5 {[%clk 0:01:45]} 23. Rad1 {[%clk 0:01:52]}  e4 {[%clk 0:01:42]} 24. Bc5 {[%clk 0:01:52]}  Be5 {[%clk 0:01:32]} 25. Bd4 {[%clk 0:01:52]}  Bd6 {[%clk 0:01:33]} 26. Rc1 {[%clk 0:01:37]}  a6 {[%clk 0:01:32]} 27. Rc2 {[%clk 0:01:27]}  Raf8 {[%clk 0:01:32]} 28. a4 {[%clk 0:01:10]}  R8f7 {[%clk 0:01:31]} 29. Nd1 {[%clk 0:01:11]}  Rg5 {[%clk 0:01:09]} 30. Ne3 {[%clk 0:01:07]}  Rg6 {[%clk 0:01:04]} 31. Rd1 {[%clk 0:01:07]}  Bf4 {[%clk 0:00:57]} 32. Bc5 {[%clk 0:00:48]}  Rg5 {[%clk 0:00:56]} 33. Bd4 {[%clk 0:00:45]}  Bb8 {[%clk 0:00:55]} 34. Ra1 {[%clk 0:00:43]}  Bd7 {[%clk 0:00:54]} 35. Kf1 {[%clk 0:00:32]}  Bg3 {[%clk 0:00:49]} 36. b4 {[%clk 0:00:26]}  Bh4 {[%clk 0:00:47]} 37. Ke1 {[%clk 0:00:22]}  Bc6 {[%clk 0:00:45]} 38. Rb2 {[%clk 0:00:21]}  Rh5 {[%clk 0:00:24]} 39. Raa2 {[%clk 0:00:21]}  Bd8 {[%clk 0:00:19]} 40. b5 {[%clk 0:00:21]}  Ba5+ {[%clk 0:00:19]} 41. Kf1 {[%clk 0:00:20]}  Bd7 {[%clk 0:00:19]} 42. Rb1 {[%clk 0:00:18]}  Rg5 {[%clk 0:00:14]} 43. Rc2 {[%clk 0:00:18]}  Rh5 {[%clk 0:00:13]} 44. Rbb2 {[%clk 0:00:16]}  Rg5 {[%clk 0:00:14]} 45. Rb1 {[%clk 0:00:16]}  Rh5 {[%clk 0:00:14]} 46. Rcb2 {[%clk 0:00:17]}  Rg5 {[%clk 0:00:14]} 47. Rd1 {[%clk 0:00:17]}  Rh5 {[%clk 0:00:14]} 48. Rc1 {[%clk 0:00:14]}  Rg5 {[%clk 0:00:14]} 49. Rcc2 {[%clk 0:00:14]}  Rh5 {[%clk 0:00:14]} 50. Rb1 {[%clk 0:00:14]}  Rg5 {[%clk 0:00:15]} 51. Rb3 {[%clk 0:00:14]}  Rh5 {[%clk 0:00:15]} 52. Kg1 {[%clk 0:00:14]}  Rg5 {[%clk 0:00:15]} 53. Kf1 {[%clk 0:00:15]}  Rh5 {[%clk 0:00:15]} 54. Rbb2 {[%clk 0:00:14]}  axb5 {[%clk 0:00:14]} 55. axb5 {[%clk 0:00:14]}  b6 {[%clk 0:00:15]} 56. Rb3 {[%clk 0:00:14]}  Rg5 {[%clk 0:00:15]} 57. Rb1 {[%clk 0:00:14]}  Rh5 {[%clk 0:00:15]} 58. Nd1 {[%clk 0:00:11]}  Bf5 {[%clk 0:00:13]} 59. Ne3 {[%clk 0:00:12]}  Bd7 {[%clk 0:00:13]} 60. Rcb2 {[%clk 0:00:11]}  Rg5 {[%clk 0:00:13]} 61. Rc1 {[%clk 0:00:11]}  Rh5 {[%clk 0:00:13]} 62. Rbb1 {[%clk 0:00:11]}  Rg5 {[%clk 0:00:14]} 63. Rb2 {[%clk 0:00:11]}  Rh5 {[%clk 0:00:14]} 64. Rcc2 {[%clk 0:00:11]}  Rg5 {[%clk 0:00:14]} 65. Rb3 {[%clk 0:00:12]}  Rh5 {[%clk 0:00:14]} 66. Rc1 {[%clk 0:00:12]}  Bd2 {[%clk 0:00:13]} 67. Rd1 {[%clk 0:00:12]}  Ba5 {[%clk 0:00:13]} 68. Kg1 {[%clk 0:00:10]}  Rg5 {[%clk 0:00:13]} 69. Kh1 {[%clk 0:00:10]}  Rh5 {[%clk 0:00:13]} 70. Kg1 {[%clk 0:00:08]}  Rg5 {[%clk 0:00:14]} 71. Kf1 {[%clk 0:00:09]}  Rh5 {[%clk 0:00:14]} 72. Rb2 {[%clk 0:00:09]}  Rg5 {[%clk 0:00:15]} 73. Rdb1 {[%clk 0:00:08]}  Rh5 {[%clk 0:00:15]} 74. Rc2 {[%clk 0:00:08]}  Rg5 {[%clk 0:00:15]} 75. Nd1 {[%clk 0:00:08]}  Rh5 {[%clk 0:00:14]} 76. Rb3 {[%clk 0:00:08]}  Rg5 {[%clk 0:00:11]} 77. Be3 {[%clk 0:00:07]}  Rgf5 {[%clk 0:00:10]} 78. Bd4 {[%clk 0:00:08]}  Rh5 {[%clk 0:00:11]} 79. Rc1 {[%clk 0:00:07]}  Rg5 {[%clk 0:00:08]} 80. Ne3 {[%clk 0:00:06]}  Rh5 {[%clk 0:00:08]} 81. Rcb1 {[%clk 0:00:06]}  Rg5 {[%clk 0:00:08]} 82. Nd1 {[%clk 0:00:06]}  Rh5 {[%clk 0:00:09]} 83. Rg3 {[%clk 0:00:07]}  Rhf5 {[%clk 0:00:08]} 84. Rb2 {[%clk 0:00:06]}  Be6 {[%clk 0:00:06]} 85. Ne3 {[%clk 0:00:06]}  R5f6 {[%clk 0:00:06]} 86. Rc2 {[%clk 0:00:05]}  Rh6 {[%clk 0:00:04]} 87. Rg5 {[%clk 0:00:05]}  Rd7 {[%clk 0:00:02]} 88. Rc6 {[%clk 0:00:05]}  Bg8 {[%clk 0:00:02]} 89. Rxg7+ {[%clk 0:00:03]}  Rxg7 {[%clk 0:00:02]} 90. Rxh6+ {[%clk 0:00:04]}  Kxh6 {[%clk 0:00:02]} 91. Nf5+ {[%clk 0:00:05]}  Kg6 {[%clk 0:00:03]} 92. Nxg7 {[%clk 0:00:04]}  Bf7 {[%clk 0:00:04]} 93. g4 {[%clk 0:00:04]}  Kh7 {[%clk 0:00:04]} 94. h4 {[%clk 0:00:04]}  Bb4 {[%clk 0:00:04]} 95. Nf5 {[%clk 0:00:04]}  Be8 {[%clk 0:00:04]} 96. Kg2 {[%clk 0:00:03]}  Bxb5 {[%clk 0:00:05]} 97. h5 {[%clk 0:00:04]}  Bd7 {[%clk 0:00:05]} 98. Ne3 {[%clk 0:00:04]}  Be6 {[%clk 0:00:04]} 99. Bxb6 {[%clk 0:00:04]}  Bc3 {[%clk 0:00:04]} 100. g5 {[%clk 0:00:03]}  d4 {[%clk 0:00:05]} 101. Nd1 {[%clk 0:00:03]}  Ba1 {[%clk 0:00:04]} 102. f3 {[%clk 0:00:03]}  Bb3 {[%clk 0:00:04]} 103. Nf2 {[%clk 0:00:02]}  e3 {[%clk 0:00:04]} 104. Ng4 {[%clk 0:00:02]}  e2 {[%clk 0:00:04]} 105. g6+ {[%clk 0:00:02]}  Kh8 {[%clk 0:00:04]} 106. Kf2 {[%clk 0:00:02]}  d3 {[%clk 0:00:04]} 107. Ba5 {[%clk 0:00:01]}  Bd4+ {[%clk 0:00:04]} 108. Ke1 {[%clk 0:00:02]}  Bc4 {[%clk 0:00:05]} 109. h6 {[%clk 0:00:02]}  Be6 {[%clk 0:00:05]} 110. Bd2 {[%clk 0:00:02]}  Bxg4 {[%clk 0:00:04]} 111. fxg4 {[%clk 0:00:03]}  Kg8 {[%clk 0:00:05]} 112. g5 {[%clk 0:00:03]}  Be5 {[%clk 0:00:04]} 113. g7 {[%clk 0:00:03]}  Bg3# {[%clk 0:00:04]} 0-1


[Site "https://www.chess.com"]

[Event "Titled Tuesday Blitz August 22 Early 2023"]
[White "Terry, Renato"]
[Black "Yeletsky, Ivan"]
[WhiteFideId "3803457"]
[BlackFideId "24180327"]
[WhiteElo "2952"]
[BlackElo "2873"]
[Result "1-0"]
[Round "7"]
[TimeControl "180+1"]
[Date "2023.08.22"]
[WhiteClock "0:01:00"]
[BlackClock "0:00:01"]
[Board "12"]

1. d4 {[%clk 0:03:00]}  d5 {[%clk 0:02:59]} 2. Nf3 {[%clk 0:03:01]}  Nf6 {[%clk 0:02:58]} 3. c4 {[%clk 0:03:01]}  e6 {[%clk 0:02:58]} 4. e3 {[%clk 0:03:01]}  Be7 {[%clk 0:02:57]} 5. b3 {[%clk 0:03:01]}  O-O {[%clk 0:02:56]} 6. Bd3 {[%clk 0:03:01]}  c5 {[%clk 0:02:55]} 7. O-O {[%clk 0:03:02]}  cxd4 {[%clk 0:02:55]} 8. exd4 {[%clk 0:03:02]}  Nc6 {[%clk 0:02:56]} 9. Bb2 {[%clk 0:03:02]}  b6 {[%clk 0:02:56]} 10. Nbd2 {[%clk 0:03:02]}  Bb7 {[%clk 0:02:56]} 11. Qe2 {[%clk 0:03:02]}  Rc8 {[%clk 0:02:54]} 12. Rac1 {[%clk 0:03:02]}  Re8 {[%clk 0:02:51]} 13. a3 {[%clk 0:03:00]}  Bf8 {[%clk 0:02:45]} 14. Rfd1 {[%clk 0:02:57]}  g6 {[%clk 0:02:43]} 15. Qe3 {[%clk 0:02:43]}  dxc4 {[%clk 0:02:37]} 16. bxc4 {[%clk 0:02:43]}  Bg7 {[%clk 0:02:38]} 17. h3 {[%clk 0:02:41]}  Qe7 {[%clk 0:02:23]} 18. Nb3 {[%clk 0:02:36]}  Qf8 {[%clk 0:02:12]} 19. Rc2 {[%clk 0:02:32]}  Ne7 {[%clk 0:02:09]} 20. Ne5 {[%clk 0:02:30]}  Nf5 {[%clk 0:02:09]} 21. Qe1 {[%clk 0:02:27]}  Nh4 {[%clk 0:02:04]} 22. f3 {[%clk 0:02:26]}  Nf5 {[%clk 0:02:04]} 23. g4 {[%clk 0:02:17]}  Nd6 {[%clk 0:02:01]} 24. a4 {[%clk 0:02:13]}  Red8 {[%clk 0:01:50]} 25. a5 {[%clk 0:02:09]}  Nd7 {[%clk 0:01:44]} 26. Ba3 {[%clk 0:02:08]}  Nxe5 {[%clk 0:01:20]} 27. dxe5 {[%clk 0:02:08]}  Bxe5 {[%clk 0:01:20]} 28. Qxe5 {[%clk 0:02:06]}  Nxc4 {[%clk 0:01:21]} 29. Rxc4 {[%clk 0:01:46]}  Qxa3 {[%clk 0:01:21]} 30. Rxc8 {[%clk 0:01:41]}  Rxc8 {[%clk 0:01:13]} 31. Nd4 {[%clk 0:01:28]}  Qxa5 {[%clk 0:00:56]} 32. Qxa5 {[%clk 0:01:26]}  bxa5 {[%clk 0:00:57]} 33. Be2 {[%clk 0:01:25]}  e5 {[%clk 0:00:33]} 34. Nb5 {[%clk 0:01:24]}  Rc2 {[%clk 0:00:33]} 35. Kf1 {[%clk 0:01:17]}  Ba6 {[%clk 0:00:33]} 36. Nd4 {[%clk 0:01:12]}  Bxe2+ {[%clk 0:00:24]} 37. Nxe2 {[%clk 0:01:12]}  a4 {[%clk 0:00:25]} 38. Ra1 {[%clk 0:01:11]}  Rc4 {[%clk 0:00:25]} 39. Kf2 {[%clk 0:01:11]}  Kg7 {[%clk 0:00:22]} 40. Ke3 {[%clk 0:01:11]}  f5 {[%clk 0:00:21]} 41. Kd3 {[%clk 0:01:11]}  Rb4 {[%clk 0:00:21]} 42. Nc3 {[%clk 0:01:11]}  Rf4 {[%clk 0:00:14]} 43. Ke3 {[%clk 0:01:10]}  Rc4 {[%clk 0:00:12]} 44. Nxa4 {[%clk 0:01:10]}  fxg4 {[%clk 0:00:10]} 45. hxg4 {[%clk 0:01:08]}  h5 {[%clk 0:00:10]} 46. gxh5 {[%clk 0:01:07]}  gxh5 {[%clk 0:00:11]} 47. Nb2 {[%clk 0:01:07]}  Rc7 {[%clk 0:00:07]} 48. Nd3 {[%clk 0:01:02]}  Kf6 {[%clk 0:00:07]} 49. Ra6+ {[%clk 0:01:01]}  Kf5 {[%clk 0:00:04]} 50. Rh6 {[%clk 0:01:01]}  Re7 {[%clk 0:00:04]} 51. Rxh5+ {[%clk 0:01:01]}  Kf6 {[%clk 0:00:05]} 52. Ke4 {[%clk 0:01:00]}  a5 {[%clk 0:00:05]} 53. Rh6+ {[%clk 0:01:01]}  Kg5 {[%clk 0:00:05]} 54. Ra6 {[%clk 0:01:02]}  Rb7 {[%clk 0:00:02]} 55. Rxa5 {[%clk 0:01:01]}  Kh4 {[%clk 0:00:02]} 56. Rxe5 {[%clk 0:01:00]}  Kg3 {[%clk 0:00:01]} 57. Rg5+ {[%clk 0:01:00]} 1-0


[Site "https://www.chess.com"]

[Event "Titled Tuesday Blitz August 22 Early 2023"]
[White "Ibrahimli, Murad"]
[Black "Kramnik, Vladimir"]
[WhiteFideId "13410229"]
[BlackFideId "4101588"]
[WhiteElo "2868"]
[BlackElo "2938"]
[Result "0-1"]
[Round "7"]
[TimeControl "180+1"]
[Date "2023.08.22"]
[WhiteClock "0:00:07"]
[BlackClock "0:01:10"]
[Board "13"]

1. d4 {[%clk 0:03:00]}  d5 {[%clk 0:02:59]} 2. c4 {[%clk 0:03:01]}  e6 {[%clk 0:02:59]} 3. Nf3 {[%clk 0:03:01]}  Nf6 {[%clk 0:02:59]} 4. g3 {[%clk 0:03:00]}  Be7 {[%clk 0:02:57]} 5. Bg2 {[%clk 0:03:00]}  O-O {[%clk 0:02:58]} 6. O-O {[%clk 0:03:00]}  dxc4 {[%clk 0:02:58]} 7. Qc2 {[%clk 0:03:00]}  a6 {[%clk 0:02:58]} 8. a4 {[%clk 0:02:59]}  b6 {[%clk 0:02:58]} 9. Qxc4 {[%clk 0:02:56]}  Bb7 {[%clk 0:02:58]} 10. Bg5 {[%clk 0:02:57]}  Nbd7 {[%clk 0:02:56]} 11. Nc3 {[%clk 0:02:52]}  c5 {[%clk 0:02:54]} 12. Rfd1 {[%clk 0:02:51]}  Rc8 {[%clk 0:02:50]} 13. Qd3 {[%clk 0:02:50]}  h6 {[%clk 0:02:44]} 14. Bxf6 {[%clk 0:02:49]}  Nxf6 {[%clk 0:02:43]} 15. Ne5 {[%clk 0:02:41]}  Bxg2 {[%clk 0:02:36]} 16. Kxg2 {[%clk 0:02:42]}  cxd4 {[%clk 0:02:34]} 17. Qxd4 {[%clk 0:02:43]}  Qc7 {[%clk 0:02:33]} 18. Nf3 {[%clk 0:02:07]}  Qb7 {[%clk 0:02:29]} 19. h3 {[%clk 0:01:54]}  Rc5 {[%clk 0:02:20]} 20. e4 {[%clk 0:01:50]}  Rfc8 {[%clk 0:02:15]} 21. Qe3 {[%clk 0:01:38]}  Rxc3 {[%clk 0:01:54]} 22. bxc3 {[%clk 0:01:37]}  Nxe4 {[%clk 0:01:54]} 23. Rd4 {[%clk 0:01:30]}  f5 {[%clk 0:01:38]} 24. Rad1 {[%clk 0:01:22]}  Rxc3 {[%clk 0:01:29]} 25. Rxe4 {[%clk 0:01:12]}  Rxe3 {[%clk 0:01:25]} 26. Rxe3 {[%clk 0:01:03]}  Qc6 {[%clk 0:01:17]} 27. h4 {[%clk 0:00:17]}  Qxa4 {[%clk 0:01:14]} 28. Rb1 {[%clk 0:00:15]}  Bc5 {[%clk 0:01:11]} 29. Rxe6 {[%clk 0:00:07]}  Qa2 {[%clk 0:01:10]} 0-1


[Site "https://www.chess.com"]

[Event "Titled Tuesday Blitz August 22 Early 2023"]
[White "Kovalev, Vladislav"]
[Black "Krzyzanowski, Marcin"]
[WhiteFideId "13504398"]
[BlackFideId "1132199"]
[WhiteElo "2910"]
[BlackElo "2796"]
[Result "1-0"]
[Round "7"]
[TimeControl "180+1"]
[Date "2023.08.22"]
[WhiteClock "0:00:11"]
[BlackClock "0:00:02"]
[Board "17"]

1. e4 {[%clk 0:03:00]}  c5 {[%clk 0:02:59]} 2. Nf3 {[%clk 0:03:01]}  d6 {[%clk 0:02:57]} 3. Bb5+ {[%clk 0:03:01]}  Bd7 {[%clk 0:02:55]} 4. Bxd7+ {[%clk 0:03:02]}  Qxd7 {[%clk 0:02:56]} 5. c4 {[%clk 0:03:02]}  Nf6 {[%clk 0:02:54]} 6. Nc3 {[%clk 0:03:03]}  g6 {[%clk 0:02:55]} 7. d4 {[%clk 0:03:02]}  cxd4 {[%clk 0:02:55]} 8. Nxd4 {[%clk 0:03:03]}  Bg7 {[%clk 0:02:56]} 9. f3 {[%clk 0:03:02]}  O-O {[%clk 0:02:56]} 10. Be3 {[%clk 0:03:02]}  Nc6 {[%clk 0:02:55]} 11. Rc1 {[%clk 0:03:02]}  Rac8 {[%clk 0:02:53]} 12. b3 {[%clk 0:03:02]}  a6 {[%clk 0:02:49]} 13. a4 {[%clk 0:03:00]}  e6 {[%clk 0:02:31]} 14. O-O {[%clk 0:02:59]}  Rfe8 {[%clk 0:02:31]} 15. Qd2 {[%clk 0:02:53]}  Ne5 {[%clk 0:02:20]} 16. h3 {[%clk 0:02:43]}  Nh5 {[%clk 0:02:15]} 17. Rfd1 {[%clk 0:02:42]}  f5 {[%clk 0:02:10]} 18. Nde2 {[%clk 0:02:34]}  Nf7 {[%clk 0:01:47]} 19. a5 {[%clk 0:02:09]}  Qe7 {[%clk 0:01:37]} 20. Qe1 {[%clk 0:01:49]}  g5 {[%clk 0:01:31]} 21. exf5 {[%clk 0:01:44]}  exf5 {[%clk 0:01:30]} 22. Nd5 {[%clk 0:01:45]}  Qd8 {[%clk 0:01:27]} 23. Bb6 {[%clk 0:01:36]}  Qd7 {[%clk 0:01:26]} 24. Qf2 {[%clk 0:01:36]}  f4 {[%clk 0:01:21]} 25. Bd4 {[%clk 0:01:22]}  Qe6 {[%clk 0:01:11]} 26. Bxg7 {[%clk 0:01:17]}  Nxg7 {[%clk 0:00:48]} 27. Nec3 {[%clk 0:01:12]}  h5 {[%clk 0:00:43]} 28. Ne4 {[%clk 0:01:08]}  Kh8 {[%clk 0:00:18]} 29. Nef6 {[%clk 0:01:08]}  Rf8 {[%clk 0:00:16]} 30. Re1 {[%clk 0:01:08]}  Ne5 {[%clk 0:00:14]} 31. h4 {[%clk 0:01:08]}  Rxf6 {[%clk 0:00:14]} 32. hxg5 {[%clk 0:00:48]}  Rf5 {[%clk 0:00:14]} 33. Qh4 {[%clk 0:00:49]}  Rcf8 {[%clk 0:00:08]} 34. Re4 {[%clk 0:00:47]}  Ng6 {[%clk 0:00:05]} 35. Rxe6 {[%clk 0:00:25]}  Nxh4 {[%clk 0:00:05]} 36. Rh6+ {[%clk 0:00:25]}  Kg8 {[%clk 0:00:06]} 37. Ne7+ {[%clk 0:00:24]}  Kf7 {[%clk 0:00:06]} 38. Nxf5 {[%clk 0:00:23]}  Nhxf5 {[%clk 0:00:05]} 39. Rf6+ {[%clk 0:00:21]}  Kg8 {[%clk 0:00:04]} 40. Re1 {[%clk 0:00:22]}  Ne3 {[%clk 0:00:03]} 41. Rxd6 {[%clk 0:00:20]}  Ngf5 {[%clk 0:00:02]} 42. Rd7 {[%clk 0:00:19]}  h4 {[%clk 0:00:03]} 43. Rxb7 {[%clk 0:00:18]}  Rd8 {[%clk 0:00:03]} 44. Re7 {[%clk 0:00:01]}  Rd2 {[%clk 0:00:03]} 45. R7xe3 {[%clk 0:00:02]}  fxe3 {[%clk 0:00:03]} 46. c5 {[%clk 0:00:02]}  Rc2 {[%clk 0:00:03]} 47. b4 {[%clk 0:00:02]}  Kg7 {[%clk 0:00:02]} 48. Kh2 {[%clk 0:00:03]}  Kg6 {[%clk 0:00:02]} 49. f4 {[%clk 0:00:03]}  Nd4 {[%clk 0:00:02]} 50. Rxe3 {[%clk 0:00:03]}  Kf5 {[%clk 0:00:02]} 51. Re8 {[%clk 0:00:01]}  Kxf4 {[%clk 0:00:02]} 52. g6 {[%clk 0:00:02]}  Nf5 {[%clk 0:00:03]} 53. Rf8 {[%clk 0:00:02]}  Kg5 {[%clk 0:00:03]} 54. Rxf5+ {[%clk 0:00:03]}  Kxg6 {[%clk 0:00:03]} 55. Rf4 {[%clk 0:00:03]}  Rb2 {[%clk 0:00:02]} 56. Rxh4 {[%clk 0:00:03]}  Kg5 {[%clk 0:00:03]} 57. Rd4 {[%clk 0:00:04]}  Kf5 {[%clk 0:00:03]} 58. Kg3 {[%clk 0:00:05]}  Rc2 {[%clk 0:00:04]} 59. Kf3 {[%clk 0:00:04]}  Rc3+ {[%clk 0:00:04]} 60. Ke2 {[%clk 0:00:05]}  Ke5 {[%clk 0:00:05]} 61. Rg4 {[%clk 0:00:05]}  Rc2+ {[%clk 0:00:06]} 62. Kd3 {[%clk 0:00:05]}  Rc1 {[%clk 0:00:06]} 63. Rg6 {[%clk 0:00:06]}  Kd5 {[%clk 0:00:05]} 64. Rd6+ {[%clk 0:00:06]}  Ke5 {[%clk 0:00:05]} 65. Rxa6 {[%clk 0:00:07]}  Kd5 {[%clk 0:00:05]} 66. Rd6+ {[%clk 0:00:08]}  Ke5 {[%clk 0:00:06]} 67. a6 {[%clk 0:00:08]}  Ra1 {[%clk 0:00:05]} 68. Kc4 {[%clk 0:00:09]}  Ra2 {[%clk 0:00:05]} 69. Kb5 {[%clk 0:00:10]}  Rxg2 {[%clk 0:00:05]} 70. a7 {[%clk 0:00:10]}  Rg8 {[%clk 0:00:05]} 71. Kb6 {[%clk 0:00:10]}  Rc8 {[%clk 0:00:04]} 72. Kb7 {[%clk 0:00:10]}  Re8 {[%clk 0:00:04]} 73. a8=Q {[%clk 0:00:10]}  Rxa8 {[%clk 0:00:02]} 74. Kxa8 {[%clk 0:00:11]} 1-0


[Site "https://www.chess.com"]

[Event "Titled Tuesday Blitz August 22 Early 2023"]
[White "Orozbaev, Eldiar"]
[Black "Van Foreest, Jorden"]
[WhiteFideId "13802240"]
[BlackFideId "1039784"]
[WhiteElo "2776"]
[BlackElo "2992"]
[Result "1-0"]
[Round "7"]
[TimeControl "180+1"]
[Date "2023.08.22"]
[WhiteClock "0:00:07"]
[BlackClock "0:00:02"]
[Board "24"]

1. e4 {[%clk 0:02:52]}  g6 {[%clk 0:03:00]} 2. d4 {[%clk 0:02:52]}  Bg7 {[%clk 0:03:01]} 3. Nc3 {[%clk 0:02:53]}  d6 {[%clk 0:03:02]} 4. Be3 {[%clk 0:02:51]}  a6 {[%clk 0:03:02]} 5. a4 {[%clk 0:02:50]}  Nf6 {[%clk 0:02:56]} 6. Nf3 {[%clk 0:02:49]}  b6 {[%clk 0:02:52]} 7. Bd3 {[%clk 0:02:48]}  Bb7 {[%clk 0:02:51]} 8. O-O {[%clk 0:02:48]}  Nbd7 {[%clk 0:02:51]} 9. Qe2 {[%clk 0:02:48]}  e6 {[%clk 0:02:49]} 10. Rad1 {[%clk 0:02:47]}  h6 {[%clk 0:02:49]} 11. Rfe1 {[%clk 0:02:47]}  O-O {[%clk 0:02:46]} 12. h3 {[%clk 0:02:45]}  Qe7 {[%clk 0:02:39]} 13. Bc1 {[%clk 0:02:41]}  c5 {[%clk 0:02:39]} 14. e5 {[%clk 0:02:39]}  dxe5 {[%clk 0:02:35]} 15. dxe5 {[%clk 0:02:39]}  Nd5 {[%clk 0:02:29]} 16. Nxd5 {[%clk 0:02:32]}  exd5 {[%clk 0:01:47]} 17. e6 {[%clk 0:02:30]}  Qxe6 {[%clk 0:01:46]} 18. Qxe6 {[%clk 0:02:30]}  fxe6 {[%clk 0:01:47]} 19. Rxe6 {[%clk 0:02:29]}  g5 {[%clk 0:01:44]} 20. Rde1 {[%clk 0:02:25]}  c4 {[%clk 0:01:31]} 21. Bg6 {[%clk 0:02:23]}  Rf6 {[%clk 0:01:21]} 22. c3 {[%clk 0:01:38]}  Nc5 {[%clk 0:01:06]} 23. Rxf6 {[%clk 0:01:23]}  Bxf6 {[%clk 0:01:07]} 24. a5 {[%clk 0:01:14]}  Kg7 {[%clk 0:01:06]} 25. Bc2 {[%clk 0:01:10]}  bxa5 {[%clk 0:01:02]} 26. Be3 {[%clk 0:01:10]}  Ne6 {[%clk 0:00:34]} 27. Ra1 {[%clk 0:01:02]}  Bd8 {[%clk 0:00:29]} 28. Nd4 {[%clk 0:01:02]}  Nxd4 {[%clk 0:00:26]} 29. Bxd4+ {[%clk 0:01:03]}  Kf7 {[%clk 0:00:27]} 30. Re1 {[%clk 0:00:58]}  Bc8 {[%clk 0:00:23]} 31. Ba4 {[%clk 0:00:59]}  Rb8 {[%clk 0:00:22]} 32. Be8+ {[%clk 0:00:59]}  Kf8 {[%clk 0:00:20]} 33. Bc6 {[%clk 0:00:44]}  Be7 {[%clk 0:00:20]} 34. Ra1 {[%clk 0:00:20]}  Rxb2 {[%clk 0:00:19]} 35. Bxd5 {[%clk 0:00:20]}  Bd6 {[%clk 0:00:14]} 36. Bxc4 {[%clk 0:00:20]}  Bd7 {[%clk 0:00:14]} 37. Bxa6 {[%clk 0:00:19]}  a4 {[%clk 0:00:14]} 38. c4 {[%clk 0:00:18]}  Rc2 {[%clk 0:00:15]} 39. Bb5 {[%clk 0:00:15]}  Bxb5 {[%clk 0:00:15]} 40. cxb5 {[%clk 0:00:16]}  a3 {[%clk 0:00:16]} 41. b6 {[%clk 0:00:17]}  Rc4 {[%clk 0:00:14]} 42. Be3 {[%clk 0:00:16]}  Rb4 {[%clk 0:00:12]} 43. g3 {[%clk 0:00:12]}  Rb3 {[%clk 0:00:12]} 44. Kg2 {[%clk 0:00:10]}  Be5 {[%clk 0:00:12]} 45. Rxa3 {[%clk 0:00:07]}  Rb5 {[%clk 0:00:08]} 46. Ra7 {[%clk 0:00:06]}  Bd6 {[%clk 0:00:06]} 47. Rd7 {[%clk 0:00:06]}  Be5 {[%clk 0:00:06]} 48. b7 {[%clk 0:00:06]}  Ke8 {[%clk 0:00:07]} 49. Rh7 {[%clk 0:00:06]}  Bf6 {[%clk 0:00:03]} 50. Ba7 {[%clk 0:00:06]}  Be5 {[%clk 0:00:03]} 51. b8=Q+ {[%clk 0:00:06]}  Bxb8 {[%clk 0:00:02]} 52. Bxb8 {[%clk 0:00:07]} 1-0


[Site "https://www.chess.com"]

[Event "Titled Tuesday Blitz August 22 Early 2023"]
[White "Kevlishvili, Robby"]
[Black "Leiva, Gianmarco"]
[WhiteFideId "1040634"]
[BlackFideId "3804399"]
[WhiteElo "2975"]
[BlackElo "2743"]
[Result "1-0"]
[Round "7"]
[TimeControl "180+1"]
[Date "2023.08.22"]
[WhiteClock "0:00:15"]
[BlackClock "0:00:03"]
[Board "25"]

1. e4 {[%clk 0:03:00]}  c5 {[%clk 0:02:57]} 2. Nf3 {[%clk 0:03:00]}  d6 {[%clk 0:02:58]} 3. d4 {[%clk 0:02:59]}  cxd4 {[%clk 0:02:58]} 4. Nxd4 {[%clk 0:02:59]}  Nf6 {[%clk 0:02:58]} 5. Nc3 {[%clk 0:03:00]}  a6 {[%clk 0:02:58]} 6. h4 {[%clk 0:03:01]}  e5 {[%clk 0:02:54]} 7. Nb3 {[%clk 0:03:01]}  Be6 {[%clk 0:02:47]} 8. f4 {[%clk 0:03:01]}  exf4 {[%clk 0:02:38]} 9. Bxf4 {[%clk 0:03:02]}  Nc6 {[%clk 0:02:36]} 10. Qd2 {[%clk 0:03:02]}  Be7 {[%clk 0:02:20]} 11. O-O-O {[%clk 0:03:01]}  O-O {[%clk 0:02:20]} 12. Kb1 {[%clk 0:02:59]}  Ne8 {[%clk 0:02:06]} 13. Nd5 {[%clk 0:02:56]}  Bxd5 {[%clk 0:02:04]} 14. exd5 {[%clk 0:02:57]}  Ne5 {[%clk 0:02:03]} 15. Nd4 {[%clk 0:02:56]}  Bf6 {[%clk 0:01:57]} 16. Be2 {[%clk 0:02:55]}  Rc8 {[%clk 0:01:56]} 17. g4 {[%clk 0:02:45]}  Nc4 {[%clk 0:01:56]} 18. Qb4 {[%clk 0:02:41]}  Qc7 {[%clk 0:01:37]} 19. g5 {[%clk 0:02:30]}  Be5 {[%clk 0:01:35]} 20. Bxe5 {[%clk 0:02:28]}  dxe5 {[%clk 0:01:24]} 21. Nf5 {[%clk 0:02:05]}  Ned6 {[%clk 0:01:22]} 22. Bxc4 {[%clk 0:01:54]}  Nxf5 {[%clk 0:01:19]} 23. Bd3 {[%clk 0:01:54]}  Nd6 {[%clk 0:01:12]} 24. h5 {[%clk 0:01:51]}  Rfe8 {[%clk 0:00:59]} 25. c3 {[%clk 0:01:47]}  e4 {[%clk 0:00:58]} 26. Bc2 {[%clk 0:01:47]}  Qc5 {[%clk 0:00:50]} 27. Qa4 {[%clk 0:01:40]}  b5 {[%clk 0:00:36]} 28. Qxa6 {[%clk 0:01:33]}  b4 {[%clk 0:00:36]} 29. Bb3 {[%clk 0:01:04]}  bxc3 {[%clk 0:00:32]} 30. Rc1 {[%clk 0:01:05]}  Nb5 {[%clk 0:00:10]} 31. Ba4 {[%clk 0:00:59]}  Rb8 {[%clk 0:00:06]} 32. Bxb5 {[%clk 0:00:57]}  Rxb5 {[%clk 0:00:06]} 33. Rxc3 {[%clk 0:00:55]}  Qxd5 {[%clk 0:00:06]} 34. g6 {[%clk 0:00:50]}  fxg6 {[%clk 0:00:03]} 35. hxg6 {[%clk 0:00:49]}  Ra5 {[%clk 0:00:04]} 36. gxh7+ {[%clk 0:00:46]}  Kh8 {[%clk 0:00:04]} 37. Qc4 {[%clk 0:00:47]}  Qa8 {[%clk 0:00:02]} 38. Rch3 {[%clk 0:00:43]}  e3 {[%clk 0:00:02]} 39. a3 {[%clk 0:00:38]}  e2 {[%clk 0:00:02]} 40. Re1 {[%clk 0:00:34]}  Rae5 {[%clk 0:00:03]} 41. Rc3 {[%clk 0:00:30]}  Qg2 {[%clk 0:00:03]} 42. Rc2 {[%clk 0:00:28]}  Qf2 {[%clk 0:00:03]} 43. Rcc1 {[%clk 0:00:25]}  Qf5+ {[%clk 0:00:03]} 44. Ka1 {[%clk 0:00:25]}  Qf2 {[%clk 0:00:03]} 45. a4 {[%clk 0:00:22]}  Re4 {[%clk 0:00:03]} 46. Qb5 {[%clk 0:00:21]}  R8e5 {[%clk 0:00:02]} 47. Qb8+ {[%clk 0:00:18]}  Re8 {[%clk 0:00:02]} 48. Qb3 {[%clk 0:00:17]}  Qa7 {[%clk 0:00:02]} 49. Rc4 {[%clk 0:00:16]}  Qa5 {[%clk 0:00:02]} 50. Rxe4 {[%clk 0:00:15]}  Qxe1+ {[%clk 0:00:03]} 51. Ka2 {[%clk 0:00:16]}  Rxe4 {[%clk 0:00:03]} 52. Qg8# {[%clk 0:00:15]} 1-0


[Site "https://www.chess.com"]